Cogmind - Beta 11 *** ADVENTURER MODE // 2022.03.26 @ 15:34:06 Player: Sn@43 Result: Destroyed by Y-54 Guardian with Flak Gun Performance ------------- Evolutions (3) 1500 Regions Visited (9) 1800 Robots Destroyed (121) 605 Value Destroyed (4985) 4985 Prototype IDs (9) 180 Alien Tech Used (0) 0 Bonus (1750) 1750 TOTAL SCORE: 10820 Bonus ------- High Alert Combat Kills 182 Follower Combat Kills 180 Entered Garrisons 400 Used RIF Installer 1000 Friendly Fire -12 Cogmind --------- Core Integrity 0/700 Matter 69/300 Energy 240/240 System Corruption 3% Temperature Cool (0) Movement Hovering (108) Ox1 Location -7/Factory Parts ------- > --- POWER (1) -------- Nuclear Core > --- PROPULSION (3) --- Airjet Airjet Aerolev Unit > --- UTILITY (6) ------ Improved Heat Sink Coolant Injector Large Storage Unit Relay Coupler [NC] (35) Relay Coupler [Grunt] (36) Relay Coupler [Sentry] (2) > --- WEAPON (3) ------- Flak Gun Advanced Assault Cannon Remote Datajack > --- INVENTORY (15) --- Micro Nuclear Core Airjet Airjet Airjet System Shield Relay Coupler [NC] (39) Relay Coupler [NC] (34) Relay Coupler [Grunt] (39) Relay Coupler [Grunt] (34) Relay Coupler [Specialist] (29) Relay Coupler [Hunter] (22) Flak Gun Advanced Assault Cannon Chainsword Peak State ------------ > --- POWER ------------ Nuclear Core > --- PROPULSION ------- Airjet Airjet Airjet > --- UTILITY ---------- Improved Heat Sink Large Storage Unit Experimental Sensor Array Relay Coupler [NC] Relay Coupler [Grunt] Relay Coupler [Sentry] > --- WEAPON ----------- Gatling Laser Flak Gun Flak Gun > --- INVENTORY -------- Airjet Airjet Airjet System Shield Relay Coupler [NC] Relay Coupler [NC] Relay Coupler [Swarmer] Relay Coupler [Grunt] Relay Coupler [Grunt] Relay Coupler [Specialist] Relay Coupler [Hunter] Advanced Assault Cannon Advanced Assault Cannon EMP Blaster Remote Datajack [Rating: 49] Favorites ----------- Power Improved Ion Engine Engine Improved Ion Engine Power Core Light Nuclear Core Propulsion Wheel Treads Light Treads Leg Aluminum Leg Wheel Wheel Hover Unit Airjet Utility Large Storage Unit Device Improved Heat Sink Storage Large Storage Unit Processor Improved Signal Interpreter Hackware Hacking Suite Protection Light Armor Plating Weapon Minigun Energy Gun Improved EM Shotgun Energy Cannon EM Pulse Cannon Ballistic Gun Minigun Ballistic Cannon Slug Cannon Launcher EMP Blaster Special Weapon Remote Datajack Build | -11 -10 -10 -9 -9 -8 -8 -7 -7 -7 ------- Run | Scr Mat Min Mat Min Mat Gar Fac Gar Fac Slots Evolved 6 | . . . 2 . 2 . 2 . . Power . | . . . . . . . . . . Propulsion 1 | . . . . . 1 . . . . Utility 4 | . . . 1 . 1 . 2 . . Weapon 1 | . . . 1 . . . . . . Parts Attached 187 | 7 4 13 28 5 17 16 8 57 32 Power 15 | 1 . 3 1 . 2 3 . 4 1 Engine 11 | 1 . 2 1 . 2 2 . 3 . Core 4 | . . 1 . . . 1 . 1 1 Reactor . | . . . . . . . . . . Propulsion 37 | 1 2 3 3 3 1 3 1 6 14 Treads 1 | . . . . . . . . 1 . Leg 13 | . . . . . 1 1 . 5 6 Wheel 15 | 1 2 3 3 3 . 2 1 . . Hover 8 | . . . . . . . . . 8 Flight . | . . . . . . . . . . Utility 47 | 2 2 2 3 1 5 3 5 18 6 Device 15 | . . . 1 . 2 2 1 5 4 Storage 7 | 2 1 . . . 1 . 2 1 . Processor 4 | . . 1 . . . . 1 2 . Hackware 8 | . . . 1 . . . . 6 1 Protection 13 | . 1 1 1 1 2 1 1 4 1 Artifact . | . . . . . . . . . . Weapon 88 | 3 . 5 21 1 9 7 2 29 11 Energy Gun 27 | . . . 16 . 5 1 . 5 . Energy Cannon 5 | . . . 4 . 1 . . . . Ballistic Gun 38 | 3 . 4 1 1 3 4 1 15 6 Ballistic Cannon 6 | . . . . . . 1 1 1 3 Launcher 6 | . . 1 . . . 1 . 3 1 Special Weapon 6 | . . . . . . . . 5 1 Impact Weapon . | . . . . . . . . . . Slashing Weapon . | . . . . . . . . . . Piercing Weapon . | . . . . . . . . . . Special Melee Weapon . | . . . . . . . . . . Unidentified Prototypes 2 | . . . 1 . . . . . 1 Corrupted Parts 1 | . . . . . . . . 1 . System Corruption 3 | . . . . . . . . 3 . Parts Lost 25 | . . 4 3 1 . 5 . 12 . Power 2 | . . 1 . . . . . 1 . Propulsion 8 | . . 1 1 1 . 2 . 3 . Utility 5 | . . 1 . . . 1 . 3 . Weapon 10 | . . 1 2 . . 2 . 5 . Highest Loss Streak 5 | . . 4 2 1 . 5 . 4 . To Critical Strikes . | . . . . . . . . . . Average Slot Usage (%) 96 | . 100 98 99 99 98 98 99 89 95 Engine 7 | . 14 12 11 11 9 8 7 2 . Core 1 | . . . . . . . . 4 7 Leg 7 | . . . . . 9 9 7 18 2 Wheel 14 | . 28 27 21 21 18 17 14 1 . Hover 1 | . . . . . . . . . 19 Device 5 | . . . 2 . 8 7 15 7 10 Storage 9 | . 16 14 11 11 9 9 7 6 7 Processor 3 | . . 2 8 . . . 6 7 1 Hackware 8 | . . . 8 11 9 9 7 8 21 Protection 7 | . 11 11 2 11 8 8 7 7 . Energy Gun 7 | . . . 18 22 13 1 . 7 5 Energy Cannon 1 | . . . 10 3 . . . . . Ballistic Gun 14 | . 28 27 3 8 13 18 15 11 11 Ballistic Cannon 1 | . . . . . . 6 7 . 3 Naked Turns 36 | . . . . . . . . 36 . Heaviest Build 107 | 19 32 32 42 43 44 47 107 45 44 Greatest Support 39 | 10 26 32 20 26 20 26 26 37 39 Greatest Overweight (x) 4 | 1 1 1 4 3 2 2 4 3 4 Average Overweight (x) 1 | . . . 1 1 1 1 1 . . Largest Inventory Capacity 25 | 8 15 15 15 15 15 15 25 15 15 Average Capacity 14 | 7 12 15 15 15 15 15 15 14 15 Most Carried 15 | 5 8 15 15 15 15 15 15 15 15 Average Carried 11 | 3 6 9 12 14 13 11 14 9 14 Final Capacity 15 | 8 15 15 15 15 15 15 15 15 15 Final Carried 15 | 5 8 14 15 15 14 15 15 12 14 Class Distribution -------------------- 22% | Hacker-Tank 21% | Mutant 15% | Hacker-Mutant 14% | Bothacker-Mutant 8% | Scavenger-Gunner 5% | Hacker-Gunner 5% | Bothacker-Tank 4% | Scavenger-Tank Dominant Class ---------------- Mutant | -10/Materials Mutant | -10/Mines Hacker-Gunner | -9/Materials Hacker-Tank | -9/Mines Hacker-Tank | -8/Materials Hacker-Tank | -8/Garrison Hacker-Mutant | -7/Factory Scavenger-Gunner | -7/Garrison Bothacker-Mutant | -7/Factory Resources | -11 -10 -10 -9 -9 -8 -8 -7 -7 -7 ----------- Run | Scr Mat Min Mat Min Mat Gar Fac Gar Fac Matter Collected 3476 | 300 250 289 331 56 130 729 158 1051 182 Remotely . | . . . . . . . . . . Salvage Created 4783 | 64 602 659 827 196 263 960 119 921 172 Parts 248 | 3 36 27 42 16 18 61 8 34 3 Haulers Intercepted 2 | . 1 . 1 . . . . . . Recyclers Shooed . | . . . . . . . . . . Parts Field Recycled . | . . . . . . . . . . Retrieved Matter . | . . . . . . . . . . Parts Self-Destructed . | . . . . . . . . . . Prevented . | . . . . . . . . . . Kills | -11 -10 -10 -9 -9 -8 -8 -7 -7 -7 ------- Run | Scr Mat Min Mat Min Mat Gar Fac Gar Fac Combat Hostiles Destroyed 104 | . 15 9 14 9 4 22 3 25 3 Guns 74 | . 15 7 4 6 3 18 2 19 . Cannons 9 | . . . 7 . . 1 1 . . AOE 16 | . . 2 1 3 . 3 . 5 2 Classes Destroyed 16 | 1 4 4 4 . . 2 1 . . Worker 2 | . . 2 . . . . . . . Builder 1 | . . 1 . . . . . . . Tunneler 2 | . . 1 . 1 . . . . . Hauler 2 | . 1 . 1 . . . . . . Recycler 5 | 1 . 3 1 . . . . . . Operator 2 | . . . 2 . . . . . . Watcher 4 | . 1 . 1 . 1 1 . . . Swarmer 25 | . 3 . 4 7 . 4 . 7 . Grunt 54 | . 12 8 3 2 . 11 2 13 3 Brawler 1 | . . . 1 . . . . . . Duelist 7 | . . . 1 . . 1 . 5 . Protector 1 | . . . . . . 1 . . . Sentry 13 | . . . 5 . 4 4 . . . Demolisher 1 | . . . . . . 1 . . . Programmer 1 | . . . . . . . 1 . . Assembled 1 | . . 1 . . . . . . . Best Kill Streak 9 | 1 9 6 3 5 3 7 2 8 3 Combat Bots Only 9 | . 9 3 3 4 2 6 2 8 3 Max Kills in Single Turn 3 | 1 2 1 1 3 1 1 1 2 1 Gunslinging 1 | . 1 . . 1 . . . . . Exploded 2 | . . 1 1 1 . 1 . 2 1 Melee . | . . . . . . . . . . Uniques/NPCs Destroyed . | . . . . . . . . . . Combat | -11 -10 -10 -9 -9 -8 -8 -7 -7 -7 -------- Run | Scr Mat Min Mat Min Mat Gar Fac Gar Fac Damage Taken 5015 | . 206 508 539 138 181 970 97 2154 222 Core 1012 | . 52 93 30 7 23 106 12 641 48 Absorbed by Shields 53 | . . . . . . 18 . 35 . Redirected to Shielding 6 | . . . . . . . . 6 . Regen/Repaired (Parts) 72 | . . . 14 . 58 . . . . Core Remaining (%) 77 | 100 . 42 . 90 . 76 . . . Volleys Fired 278 | 5 35 36 29 8 13 51 8 86 7 Largest 3 | 2 2 2 3 3 3 3 2 3 1 Hottest 188 | 40 40 40 188 118 118 98 73 168 33 Shots Fired 601 | 10 70 67 79 19 34 139 16 160 7 Gun 509 | 10 70 64 53 15 34 116 8 139 . Cannon 60 | . . . 26 4 . 20 8 2 . Launcher 15 | . . 3 . . . 3 . 4 5 Special 17 | . . . . . . . . 15 2 Kinetic 425 | 10 70 64 10 3 18 120 16 114 . Thermal 33 | . . . 6 . . . . 27 . Explosive 9 | . . 3 . . . 3 . 3 . Electromagnetic 117 | . . . 63 16 16 16 . 1 5 Robot Hit Streak 28 | 3 21 28 18 8 14 21 8 22 10 Robot Miss Streak 2 | 2 1 1 2 1 2 2 2 2 . Penetration Max . | . . . . . . . . . . Secondary Targets 9 | . 1 1 . 1 . 2 . 4 . Max Gunslinging Chain 1 | . 1 1 . 1 . 1 . 1 . Shots Hit Robots 459 | 6 61 55 58 13 28 95 11 125 7 Core Hits 211 | 2 28 24 22 12 10 49 5 53 6 Critical Kills 1 | . . . . . . . . 1 . Critical Parts Destroyed 4 | . . . . . . 2 1 1 . Critical Strikes 6 | . . . 1 . . 2 1 2 . Burn 1 | . . . 1 . . . . . . Destroy 5 | . . . . . . 2 1 2 . Melee Attacks . | . . . . . . . . . . Impact . | . . . . . . . . . . Slashing . | . . . . . . . . . . Piercing . | . . . . . . . . . . Sneak Attacks . | . . . . . . . . . . Combat Hostiles . | . . . . . . . . . . Follow-up Attacks . | . . . . . . . . . . Damage Inflicted 8528 | 78 802 805 1237 448 472 1726 258 2407 295 Guns 6217 | 78 802 659 687 190 472 1362 144 1823 . Cannons 821 | . . . 495 28 . 136 114 48 . Explosions 1490 | . . 146 55 230 . 228 . 536 295 Melee . | . . . . . . . . . . Ramming . | . . . . . . . . . . Kinetic 4677 | 78 802 659 39 16 221 1237 258 1367 . Thermal 1018 | . . . 163 230 . 106 . 504 15 Explosive 767 | . . 146 . . . 122 . 499 . Electromagnetic 2066 | . . . 1035 202 251 261 . 37 280 Impact . | . . . . . . . . . . Slashing . | . . . . . . . . . . Piercing . | . . . . . . . . . . Highest Corruption 3 | . . . 1 1 . . . 3 3 Average Corruption 2 | . . . 1 1 . . . 3 3 Corruption Purged . | . . . . . . . . . . Corruption Blocked . | . . . . . . . . . . Effects 47 | . . . 8 4 . . . 21 14 Message Errors 13 | . . . . 2 . . . 6 5 Matter Fused 10 | . . . 3 1 . . . 2 4 Heat Flow Errors 5 | . . . 1 . . . . 2 2 Energy Discharges 2 | . . . 1 . . . . 1 . Parts Rejected 1 | . . . . . . . . . 1 Data Loss (minor) 10 | . . . 1 . . . . 8 1 Data Loss (major) 1 | . . . . . . . . 1 . Misfires 2 | . . . . 1 . . . 1 . Alerts 1 | . . . . . . . . . 1 Weapon Failures 2 | . . . 2 . . . . . . Overload Shots . | . . . . . . . . . . Overflow Damage 129 | . . . 104 . . . 9 16 . Projectiles 29 | . . . 20 . . . 9 . . Explosions 100 | . . . 84 . . . . 16 . Melee . | . . . . . . . . . . Knockbacks 3 | . . . . . . 2 . 1 . Impact . | . . . . . . . . . . Kinetic 3 | . . . . . . 2 . 1 . Secondary . | . . . . . . . . . . Self-Inflicted Damage 482 | . . 72 242 30 . 31 . 107 . Shots 13 | . . 2 4 1 . 2 . 4 . Rammed . | . . . . . . . . . . Targets Rammed . | . . . . . . . . . . Kicked . | . . . . . . . . . . Crushed . | . . . . . . . . . . Highest Temperature 337 | . 6 30 332 204 192 337 8 226 135 Average Temperature 75 | . 2 11 93 84 55 89 7 61 70 Received Heat Transfer 1734 | . 132 306 102 15 72 540 27 408 132 Effects 2 | . . . . . . 2 . . . Energy Bleed 2 | . . . . . . 2 . . . Siege Activations . | . . . . . . . . . . Robots Corrupted 4 | . . . 2 . 1 . . . 1 Combat Hostiles 4 | . . . 2 . 1 . . . 1 Parts Fried 9 | . . . 5 . 3 1 . . . Impact Corruptions . | . . . . . . . . . . Robots Melted 1 | . . . . . . . . 1 . Combat Hostiles 1 | . . . . . . . . 1 . Parts Melted 8 | . . . 1 1 . 2 . 4 . Heat Transferred 2028 | . . . 309 350 . 150 . 1169 50 Parts Sabotaged . | . . . . . . . . . . Parts Stolen . | . . . . . . . . . . Parts Stripped . | . . . . . . . . . . Power Chain Reactions 9 | . . . 2 4 . 2 . . 1 Missiles Intercepted . | . . . . . . . . . . Alert | -11 -10 -10 -9 -9 -8 -8 -7 -7 -7 ------- Run | Scr Mat Min Mat Min Mat Gar Fac Gar Fac Peak Influence 760 | 5 292 241 293 191 177 760 345 668 303 Initial 345 | . 2 30 30 44 43 29 345 21 303 Average 239 | 1 66 55 103 158 62 483 233 441 213 Maximum Alert Level 3 | . 1 1 1 . . 3 1 2 1 Low Security (%) 56 | 100 88 95 83 100 100 12 51 9 49 Level 1 19 | . 11 4 16 . . 11 48 23 50 Level 2 21 | . . . . . . 55 . 67 . Level 3 2 | . . . . . . 20 . . . Level 4 . | . . . . . . . . . . Level 5 . | . . . . . . . . . . High Security . | . . . . . . . . . . Max Security . | . . . . . . . . . . Squads Dispatched 10 | . 3 . 2 . 1 . 2 . 2 Investigation 4 | . 3 . . . . . 1 . . Extermination 2 | . . . . . . . 1 . 1 Reinforcement 3 | . . . 2 . . . . . 1 Assault . | . . . . . . . . . . Garrison 1 | . . . . . 1 . . . . Intercept . | . . . . . . . . . . Searches Triggered . | . . . . . . . . . . Construction Impeded . | . . . . . . . . . . Haulers Reinforced . | . . . . . . . . . . Active Scanning Responses . | . . . . . . . . . . Cargo Convoy Interrupts 1 | . . . . . . . 1 . . Stealth | -11 -10 -10 -9 -9 -8 -8 -7 -7 -7 --------- Run | Scr Mat Min Mat Min Mat Gar Fac Gar Fac Distress Signals 7 | . . . 3 . 2 2 . . . Communications Jammed . | . . . . . . . . . . Distress Signals . | . . . . . . . . . . Times Spotted 147 | . 21 9 25 9 6 26 3 41 7 Peak Tracking Total 9 | . 9 3 5 4 2 5 2 8 3 Tactical Retreats 9 | . 1 1 1 . . 2 . 4 . Traps | -11 -10 -10 -9 -9 -8 -8 -7 -7 -7 ------- Run | Scr Mat Min Mat Min Mat Gar Fac Gar Fac Traps Triggered 29 | . 4 . 1 . 2 8 3 9 2 Indirectly 1 | . . . . . . . . 1 . Trap Hack Attempts . | . . . . . . . . . . Triggered . | . . . . . . . . . . Disarmed 6 | . . . 6 . . . . . . Reprogrammed . | . . . . . . . . . . Reused . | . . . . . . . . . . Traps Extracted . | . . . . . . . . . . Installed . | . . . . . . . . . . Triggered 1 | . . . . . . . 1 . . Machines | -11 -10 -10 -9 -9 -8 -8 -7 -7 -7 ---------- Run | Scr Mat Min Mat Min Mat Gar Fac Gar Fac Machines Disabled 11 | . . . 4 1 . 2 1 3 . Max in Single Turn 2 | . . . 2 1 . 1 1 1 . Garrison Relay 5 | . . . . . . 2 . 3 . Machines Sabotaged . | . . . . . . . . . . Garrisons Compromised 1 | . . . . . . . 1 . . Overloaded Fab Kills . | . . . . . . . . . . Hacking | -11 -10 -10 -9 -9 -8 -8 -7 -7 -7 --------- Run | Scr Mat Min Mat Min Mat Gar Fac Gar Fac Machines Accessed 29 | . 8 1 9 . 8 . 1 . 2 Terminals 20 | . 7 1 6 . 4 . . . 2 Fabricators . | . . . . . . . . . . Repair Stations 2 | . . . 1 . 1 . . . . Recycling Units 2 | . 1 . 1 . . . . . . Scanalyzers 3 | . . . 1 . 2 . . . . Garrison Access 2 | . . . . . 1 . 1 . . Total Hacks 80 | . 23 2 27 . 24 . 1 . 3 Successful 63 | . 18 2 21 . 20 . 1 . 1 Failed 16 | . 4 . 6 . 4 . . . 2 Catastrophic 1 | . . . . . . . . . 1 Database Lockouts 1 | . 1 . . . . . . . . Manual 46 | . 20 2 13 . 9 . . . 2 Terminals 52 | . 21 2 16 . 10 . . . 3 Fabricators . | . . . . . . . . . . Repair Stations 6 | . . . 2 . 4 . . . . Recycling Units 4 | . 2 . 2 . . . . . . Scanalyzers 16 | . . . 7 . 9 . . . . Garrison Access 2 | . . . . . 1 . 1 . . Terminal Hacks 17 | . 8 1 6 . 1 . . . 1 Robot Analysis 5 | . 3 1 1 . . . . . . Prototype ID Bank 4 | . 2 . 1 . 1 . . . . Open DSF 1 | . . . . . . . . . 1 Unreport Threat 5 | . 2 . 3 . . . . . . Disarm Traps 1 | . . . 1 . . . . . . Recall Investigation 1 | . 1 . . . . . . . . Fabricator Hacks . | . . . . . . . . . . Repair Station Hacks 6 | . . . 2 . 4 . . . . Scan Component 3 | . . . 1 . 2 . . . . Repair 3 | . . . 1 . 2 . . . . Recycling Unit Hacks 2 | . 1 . 1 . . . . . . Retrieve Components 2 | . 1 . 1 . . . . . . Scanalyzer 16 | . . . 7 . 9 . . . . Insert Component 8 | . . . 3 . 5 . . . . Analyze 8 | . . . 4 . 4 . . . . Garrison Access Hacks 2 | . . . . . 1 . 1 . . Unlock Access 2 | . . . . . 1 . 1 . . Unauthorized Hacks 19 | . 8 1 5 . 5 . . . . Terminals 18 | . 7 1 5 . 5 . . . . Assimilate 1 | . . . . . 1 . . . . Botnet 17 | . 7 1 5 . 4 . . . . Fabricators . | . . . . . . . . . . Repair Stations . | . . . . . . . . . . Recycling Units 1 | . 1 . . . . . . . . Reject 1 | . 1 . . . . . . . . Scanalyzers . | . . . . . . . . . . Garrison Access . | . . . . . . . . . . Data Cores Recovered 1 | . . . 1 . . . . . . Used 1 | . . . 1 . . . . . . Hacking Detections 20 | . 5 1 5 . 7 . . . 2 Full Trace Events . | . . . . . . . . . . Feedback Events . | . . . . . . . . . . Feedback Blocked . | . . . . . . . . . . Robot Schematics Acquired . | . . . . . . . . . . Robots Built . | . . . . . . . . . . Authchips . | . . . . . . . . . . Time . | . . . . . . . . . . Total Robot Build Rating . | . . . . . . . . . . Part Schematics Acquired 6 | . . . 3 . 3 . . . . Parts Built . | . . . . . . . . . . Authchips . | . . . . . . . . . . Time . | . . . . . . . . . . Total Part Build Rating . | . . . . . . . . . . Parts Repaired 3 | . . . 1 . 2 . . . . Time 90 | . . . 26 . 64 . . . . Parts Recycled . | . . . . . . . . . . Recycled Matter . | . . . . . . . . . . Retrieved Matter . | . . . . . . . . . . Retrieved Components 11 | . 3 . 8 . . . . . . Parts Scanalyzed 6 | . . . 3 . 3 . . . . Part Schematics Acquired 6 | . . . 3 . 3 . . . . Parts Damaged . | . . . . . . . . . . Bothacking | -11 -10 -10 -9 -9 -8 -8 -7 -7 -7 ------------ Run | Scr Mat Min Mat Min Mat Gar Fac Gar Fac Used RIF Installer 2 | . . . . . . 1 . 1 . Robot Detection 1 | . . . . . . . . 1 . Robots Hacked 12 | . . . . . . . . 10 2 Non-combat . | . . . . . . . . . . Combat 12 | . . . . . . . . 10 2 Robot Hacks Applied 13 | . . . . . . . . 11 2 scatter_targeting 1 | . . . . . . . . 1 . reboot_system 1 | . . . . . . . . 1 . go_dormant 2 | . . . . . . . . 2 . formatsys_high 9 | . . . . . . . . 7 2 Relay Couplers Released 21 | . . . . . . 9 . 12 . Machine Destruction 21 | . . . . . . 9 . 12 . Attached 7 | . . . . . . . . 6 1 Fabnet Peak Effective % . | . . . . . . . . . . Robots Rewired . | . . . . . . . . . . Allies Hacked . | . . . . . . . . . . Hacks Repelled . | . . . . . . . . . . Allies | -11 -10 -10 -9 -9 -8 -8 -7 -7 -7 -------- Run | Scr Mat Min Mat Min Mat Gar Fac Gar Fac Total Allies 9 | . . . . . . . . 7 2 Largest Group 2 | . . . . . . . . 2 2 Highest-Rated Group 64 | . . . . . . . . 64 64 Highest-Rated Ally 32 | . . . . . . . . 32 32 Total Orders . | . . . . . . . . . . Ally Attacks 34 | . . . . . . . . 34 . Total Damage 767 | . . . . . . . . 767 . Kills 6 | . . . . . . . . 6 . Allies Corrupted . | . . . . . . . . . . Allies Melted . | . . . . . . . . . . Intel | -11 -10 -10 -9 -9 -8 -8 -7 -7 -7 ------- Run | Scr Mat Min Mat Min Mat Gar Fac Gar Fac Robot Analysis Total 5 | . 3 1 1 . . . . . . Derelict Logs Recovered 4 | . . 2 . 2 . . . . . Drone Launches . | . . . . . . . . . . Drone Recoveries . | . . . . . . . . . . Exploration | -11 -10 -10 -9 -9 -8 -8 -7 -7 -7 ------------- Run | Scr Mat Min Mat Min Mat Gar Fac Gar Fac Turns Passed 8754 | 76 800 946 883 663 650 1020 865 1986 865 Spaces Moved 5846 | 51 633 742 660 581 436 638 504 957 644 Core 80 | 4 . . . . . . . 76 . Treads . | . . . . . . . . . . Legs 845 | . . . . . . 35 . 758 52 Wheels 4329 | 47 633 742 660 581 436 603 504 123 . Hover 592 | . . . . . . . . . 592 Flight . | . . . . . . . . . . Fastest Speed 50 | 50 90 100 95 95 95 105 105 50 108 Average Speed 116 | 92 98 104 99 102 109 114 106 166 116 Slowest Speed 320 | 100 105 115 140 125 110 270 150 270 320 Overloaded Moves . | . . . . . . . . . . Propulsion Burnouts . | . . . . . . . . . . Robots Hopped . | . . . . . . . . . . Cave-ins Triggered . | . . . . . . . . . . Exploration Rate (%) 53 | 3 83 98 49 99 31 66 12 77 14 Regions Visited 9 Branch Regions 2 Pre-discovered Areas 2 | . . 2 . . . . . . . Known Exits Taken 3 | . . . 1 . 1 . 1 . . Unknown Exits Taken 4 | 1 1 1 . 1 . . . . . Scrap Searched 2 | . . 1 . 1 . . . . . Spaces Dug 14 | . . . . . . 11 . 3 . Terrain Destroyed 180 | . . 28 51 21 . 44 1 31 4 Melee . | . . . . . . . . . . Projectile 2 | . . . . . . 1 1 . . AOE 178 | . . 28 51 21 . 43 . 31 4 Terrain Rammed . | . . . . . . . . . . Walls Destroyed . | . . . . . . . . . . Machines Disabled . | . . . . . . . . . . Actions | -11 -10 -10 -9 -9 -8 -8 -7 -7 -7 --------- Run | Scr Mat Min Mat Min Mat Gar Fac Gar Fac Total 7312 | 66 740 853 825 636 580 831 815 1211 755 Wait 693 | . 60 42 68 34 92 45 280 57 15 Move 5836 | 50 632 741 659 580 436 636 503 955 644 Hop . | . . . . . . . . . . Pick Up 100 | 4 5 12 20 5 7 11 13 11 12 Fast Attach 73 | 6 1 2 2 . 7 3 4 29 19 Attach 56 | . 1 8 12 3 5 8 2 11 6 Detach 13 | . . 3 4 . 2 . . 3 1 Swap 58 | 1 2 3 14 2 5 5 2 17 7 Drop 97 | . 4 6 17 4 13 9 3 10 31 Fire 278 | 5 35 36 29 8 13 51 8 86 7 Melee . | . . . . . . . . . . Ram . | . . . . . . . . . . Kick . | . . . . . . . . . . Crush . | . . . . . . . . . . Escape Stasis 108 | . . . . . . 63 . 32 13 Rewire . | . . . . . . . . . . Trap . | . . . . . . . . . . Miscellaneous . | . . . . . . . . . . Route ------- -11/Scrapyard -10/Materials (discovered 3 exits: *Mat x2 / *Min) -10/Mines (discovered 2 exits: *Mat x2) -9/Materials (discovered 3 exits: *Mat / *Min x2) -9/Mines (discovered 3 exits: *Mat x2 / [*Exi]) -8/Materials (discovered 3 exits: Fac / Sto / Gar) -8/Garrison (discovered 3 exits: *Fac x3) -7/Factory -7/Garrison (discovered 3 exits: *Fac x3) -7/Factory History --------- Turn | Location | Event 23 | -11/Scrapyard | Discovered new exit (range 16) 77 | -11/Scrapyard | Entered Materials 299 | -10/Materials | Central database locked down 318 | -10/Materials | Build established: Mutant 446 | -10/Materials | Discovered new exit (range 3) 714 | -10/Materials | Discovered new exit (range 15) 830 | -10/Materials | Destroyed 9 combat bots 853 | -10/Materials | Discovered new exit (range 7) 877 | -10/Materials | Entered Mines 966 | -10/Mines | Met a Derelict bent on vengeance 973 | -10/Mines | Learned 2 Materials zone layouts 1064 | -10/Mines | Learned location of Storage (-8) 1608 | -10/Mines | Discovered new exit (range 5) 1614 | -10/Mines | Received a Rocket Launcher from a helpful Derelict 1626 | -10/Mines | Excavation squad dispatched 1626 | -10/Mines | A large section of the Mines collapsed 1673 | -10/Mines | Core integrity fell below 50% 1700 | -10/Mines | Lost 4 parts (1p1n1u1w) 1762 | -10/Mines | Discovered new exit (range 13) 1823 | -10/Mines | Entered Materials 1823 | -9/Materials | Evolved 2 slots: Utility x1, Weapon x1 1824 | -9/Materials | Identified exit to Mines 2009 | -9/Materials | Repaired Wheel 2164 | -9/Materials | Discovered exit to Mines (range 11) 2500 | -9/Materials | Discovered new exit (range 4) 2706 | -9/Materials | Entered Mines 2825 | -9/Mines | A weapon hastily lodged in a ceiling crevice suddenly fell to the ground 2860 | -9/Mines | Build established: Hacker-Mutant 2909 | -9/Mines | Discovered new exit (range 14) 2924 | -9/Mines | Learned 4 Materials zone layouts 2924 | -9/Mines | Learned location of 1 exit from Materials 2952 | -9/Mines | Found a damaged Exp. Sensor Array with a note attached 2954 | -9/Mines | Found Prototype Device 3011 | -9/Mines | Discovered new exit (range 11) 3033 | -9/Mines | Deemed a non-threat by the Exiles lab entrance 3033 | -9/Mines | Discovered new exit (range 5) 3196 | -9/Mines | Build established: Hacker-Tank 3369 | -9/Mines | Entered Materials 3369 | -8/Materials | Evolved 2 slots: Propulsion x1, Utility x1 3370 | -8/Materials | Identified exit to Factory 3371 | -8/Materials | Identified exit to Storage 3506 | -8/Materials | Identified Exp. Sensor Array 3625 | -8/Materials | Garrison activated, responded to threat 3910 | -8/Materials | Repaired Disposable Heat Sink 3943 | -8/Materials | Repaired Med. Armor Plating 4018 | -8/Materials | Identified exit to Garrison 4019 | -8/Materials | Entered Garrison 4207 | -8/Garrison | Triggered checkpoint 4251 | -8/Garrison | Lost 5 parts (2n1u2w) 4258 | -8/Garrison | Triggered checkpoint 4333 | -8/Garrison | Discovered exit to Factory (range 14) 4370 | -8/Garrison | Triggered checkpoint 4513 | -8/Garrison | Discovered exit to Factory (range 11) 4582 | -8/Garrison | Triggered checkpoint 4689 | -8/Garrison | Discovered exit to Factory (range 15) 4728 | -8/Garrison | Installed Relay Interface Framework 4782 | -8/Garrison | Triggered checkpoint 4825 | -8/Garrison | Garrison Relay disabled 4939 | -8/Garrison | Garrison Relay disabled 5039 | -8/Garrison | Entered Factory 5039 | -7/Factory | Evolved 2 slots: Utility x2 5118 | -7/Factory | Build established: Hacker-Mutant 5890 | -7/Factory | Cargo convoy interrupted 5903 | -7/Factory | Identified exit to Garrison 5904 | -7/Factory | Entered Garrison 5978 | -7/Garrison | Triggered checkpoint 6006 | -7/Garrison | Garrison Relay disabled 6097 | -7/Garrison | Triggered checkpoint 6123 | -7/Garrison | Destroyed 8 combat bots 6132 | -7/Garrison | Triggered checkpoint 6138 | -7/Garrison | Triggered checkpoint 6158 | -7/Garrison | Triggered checkpoint 6468 | -7/Garrison | Build established: Bothacker-Tank 6487 | -7/Garrison | Discovered new exit (range 15) 6508 | -7/Garrison | Released all parts (8) 6576 | -7/Garrison | Core integrity fell below 50% 6590 | -7/Garrison | Core integrity fell below 20% 6619 | -7/Garrison | Lost 4 parts (1p3w) 6832 | -7/Garrison | Build established: Scavenger-Tank 6939 | -7/Garrison | Garrison Relay disabled 7000 | -7/Garrison | Triggered checkpoint 7090 | -7/Garrison | Triggered checkpoint 7134 | -7/Garrison | Triggered checkpoint 7364 | -7/Garrison | Discovered new exit (range 8) 7388 | -7/Garrison | Expanded RIF knowledge: Robot Detection 7423 | -7/Garrison | Build established: Scavenger-Gunner 7562 | -7/Garrison | Triggered checkpoint 7636 | -7/Garrison | Garrison Relay disabled 7680 | -7/Garrison | Triggered checkpoint 7769 | -7/Garrison | Discovered new exit (range 13) 7890 | -7/Garrison | Entered Factory 7935 | -7/Factory | Build established: Bothacker-Mutant 8755 | -7/Factory | Destroyed by Y-54 Guardian with Flak Gun Last Messages --------------- 08678_ Acquired Adv. Assault Cannon. 08682_ Jacked Y-54 Guardian... >>formatsys_high Rerouting network defenses. Erasing system data. Installing primary routines, ETC: 6. 08688_ Guardian 4f reactivates. 08694_ System corrupted: Matter fused (-5). 08696_ Acquired Coolant Injector. 08710_ Jacked Y-54 Guardian... >>formatsys_high Rerouting network defenses. Erasing system data. Installing primary routines, ETC: 6. 08718_ System corrupted: Heat flow error (+147). 08730_ K-01 Serf cleans the Power Conduit. 08743_ Dropped Adv. Assault Cannon. 08743_ Acquired Chainsword. 08744_ Dropped Autogun. 08748_ K-01 Serf cleans the Power Conduit. Map ----- +----------------------------------------------------+ | ?????????????????????????????????????????# ? ]?=? | | ?????????????????????????????????????????# ]?? | | ?????????????????????????????????????????# !?? | | ?????????????????????????????????????????# | | ?????????????????????????????????????????# = | | ?????????????????????????????????????????# " " ? | | ????????????????????????????????????????? "Y" ?? | | ?????????????????????????????????????????? """ ??? | | ?????????????????????????????????????????? ???? | | ??????????????????????????????????????????#+#??#+# | | ??????????????????????? ???????????????# #??# | | ?????????????????????# ?############### ##?# | | ?????????????????????# ?# # ### | | ?????????????????????# ## """ """ / | | ?????????????????????# ## "Y """ # ##### | | ?????????????????????# ## """ """ ## ##???? | | ?????????????????????# ## ## #???? | | ?????????????????????#t ################ #??# | | ?????????????????????# ##############?# #??# | | ?????????????????????# #=// #?# #??# | | ?????????????????????# #=/[ ### #### | | ?????????????????????# #!/] # ##?? | | ??????????? ####### # # #??? | | ?????????? # + #??? | | ?????????? ! # """"""""" # #??? | | ??????????Y @ + #* #??? | | ?????????? # """"""""" #######??? | | ?????????? # #????????? | | ??????????? ############# """"""""" #????????? | | ???????????????????????????# #????????? | | ???????????????????????????# #????????? | | ???????????????????????????##############????????? | | ?????????????????????????????????????????????????? | | ?????????????????????????????????????????????????? | | ?????????????????????????????????????????????????? | | ?????????????????????????????????????????????????? | | ?????????????????????????????????????????????????? | | | | | | | | | | | | | | | | | | | | | | | | | | | +----------------------------------------------------+ Best States ------------- Heat Dissipation 48 Coolant Potential 65 Energy Generation 16 Energy Capacity 290 Matter Stores 300 Matter Capacity 300 Sight Range 16 Robot Scan Range 20 Terrain Scan Density 10 ECM Strength 2 Armor Coverage 225 Resistance: KI 20 Resistance: TH 20 Resistance: EX 20 Resistance: EM 20 Resistance: I 20 Resistance: S 20 Resistance: P 20 Core Shielding 20 Melee Speed Boost 20 Evasion (%) 55 Targeting Accuracy 5 Melee Accuracy 6 Core Analysis 6 Offensive Hacking 20 Relay Coupler Types 3 Relay Coupler Value 99 Item Schematics ----------------- Hacking Suite | -9/Materials | Scanalyzed Wheel | -9/Materials | Scanalyzed Com. Wheel | -9/Materials | Scanalyzed Exp. Sensor Array | -8/Materials | Scanalyzed Adv. Targeting Computer | -8/Materials | Scanalyzed Hrd. Light Armor Plating | -8/Materials | Scanalyzed Robot Schematics ------------------ None Fabricated ------------ Nothing Alien Tech Used ----------------- None Achievements -------------- None Challenges ------------ None Game ------ Seed SigixSpectralSteel Manual? 0 Play Time 03:00:31 Cumulative 39.4 hours Start 2022.03.24 @ 11:28:11 End 2022.03.26 @ 15:34:06 Sessions 5 Manual Loads 0 Difficulty Adventurer Special Mode None Game No. 70 Rogue 46 Adventurer 24 Explorer 0 Win Type - Total 0 Types 0/0/0/0/0/0/0/0/0 Lore% 20 Gallery% 22 Achievement% 24 Wizard Run 0 Options --------- ASCII 0 Keyboard 0 Movement Mouse Keybinds 0 Fullscreen 1 Font 24/Terminus Map View 84x54 Tactical HUD 1 Map Filters NONE Filters NONE Steam 1 RUN: 7a59c716-5333-4638-845b-579dfe96e8bc